fUSD/lending_fUSD_20240114
["ID","MTS","AMOUNT","RATE_DAILY","PERIOD"]
[311558402,1705239053652,-512.07552299,0.0003498,3]
[311558403,1705239053662,-472.50000001,0.0003498,3]
[311558404,1705239053672,-157.49999999,0.0003498,3]
[311558405,1705239053683,-673.31895899,0.0003498,3]
[311558406,1705239053692,-157.5,0.0003498,3]
[311558407,1705239053701,-716.931734,0.0003498,3]
[311558408,1705239053711,-15888.61209413,0.0003499,2]
[311558409,1705239053722,-500.0,0.00034999,7]
[311558410,1705239053733,-500.0,0.00034999,7]
[311558411,1705239053742,-503.65933635,0.00034999,7]
[311558412,1705239053751,-264.74376294,0.00034999,7]
[311558413,1705239053761,-500.0,0.00034999,7]
[311558414,1705239053771,-500.0,0.00034999,7]
[311558415,1705239053781,-500.0,0.00034999,7]
[311558416,1705239053790,-500.0,0.00034999,7]
[311558417,1705239053799,-500.0,0.00034999,7]
[311558418,1705239053810,-567.32241076,0.00034999,7]
[311558419,1705239053820,-500.0,0.00034999,7]
[311558420,1705239053829,-500.0,0.00034999,7]
[311558421,1705239053838,-500.0,0.00034999,7]
[311558422,1705239053848,-197.92297344,0.00034999,7]
[311558423,1705239053857,-500.0,0.00034999,7]
[311558424,1705239053866,-500.0,0.00034999,7]
[311558425,1705239053876,-500.0,0.00034999,7]
[311558426,1705239053885,-500.0,0.00034999,7]
[311558427,1705239053895,-500.0,0.00034999,7]
[311558428,1705239053904,-500.0,0.00034999,7]
[311558429,1705239053914,-500.0,0.00034999,7]
[311558430,1705239053924,-500.0,0.00034999,7]
[311558431,1705239053934,-500.0,0.00034999,7]
[311558432,1705239053944,-500.0,0.00034999,7]
[311558433,1705239053954,-500.0,0.00034999,7]
[311558434,1705239053963,-500.0,0.00034999,7]
[311558435,1705239053973,-500.0,0.00034999,7]
[311558436,1705239053982,-500.0,0.00034999,7]
[311558437,1705239053992,-500.0,0.00034999,7]
[311558438,1705239054001,-500.0,0.00034999,7]
[311558439,1705239054010,-500.0,0.00034999,7]
[311558440,1705239054020,-500.0,0.00034999,7]
[311558441,1705239054029,-500.0,0.00034999,7]
[311558442,1705239054038,-500.0,0.00034999,7]
[311558443,1705239054047,-500.0,0.00034999,7]
[311558444,1705239054057,-500.0,0.00034999,7]
[311558445,1705239054067,-500.0,0.00034999,7]
[311558446,1705239054077,-500.0,0.00034999,7]
[311558447,1705239054087,-500.0,0.00034999,7]
[311558448,1705239054096,-500.0,0.00034999,7]
[311558449,1705239054106,-500.0,0.00034999,7]
[311558450,1705239054116,-500.0,0.00034999,7]
[311558451,1705239054126,-500.0,0.00034999,7]
[311558452,1705239054135,-500.0,0.00034999,7]
[311558453,1705239054144,-500.0,0.00034999,7]
[311558454,1705239054153,-500.0,0.00034999,7]
[311558455,1705239054162,-500.0,0.00034999,7]
[311558456,1705239054171,-500.0,0.00034999,7]
[311558457,1705239054179,-464.03770878,0.00034999,7]
[311558458,1705239054189,-500.0,0.00034999,7]
[311558459,1705239054198,-150.0,0.00034999,7]
[311558460,1705239054207,-300.0,0.00034999,2]
[311558461,1705239054216,-300.0,0.00034999,2]
[311558462,1705239054226,-100000.0,0.00035,5]
[311558463,1705239054237,-5000.0,0.00035,2]
[311558464,1705239054247,-255.52574363,0.00035,4]
[311558465,1705239054258,-193.73332673,0.00035,4]
[311558466,1705239054268,-15726.08647794,0.00035,7]
[311558467,1705239054277,-1867.72861032,0.00035,14]
[311558468,1705239054287,-155.0,0.00035,2]
[311558469,1705239054296,-1805.12413109,0.00035,4]
[311558470,1705239054305,-447.90630946,0.00035,4]
[311558471,1705239054315,-619.46371858,0.00035,4]
[311558472,1705239054324,-3494.78513457,0.00035,16]
[311558473,1705239054333,-235.79116121,0.00035,2]
[311558474,1705239054343,-185.61334373,0.00035,4]
[311558475,1705239054353,-3531.87843909,0.00035,14]
[311558476,1705239054363,-146700.54867186,0.00035,2]
[311558477,1705239054374,-213.2656967,0.00035,2]
[311558478,1705239054383,-3829.04521418,0.00035,2]
[311558479,1705239054392,-7396.44269898,0.00035,2]
[311558480,1705239054401,-223078.43154857,0.00035,5]
[311558481,1705239054410,-3120.10927373,0.00035,7]
[311558482,1705239054420,-343.53052878,0.00035,7]
[311558483,1705239054429,-1003.0,0.00035,2]
[311558484,1705239054439,-7639.30867322,0.00035,3]
[311558485,1705239054450,-2200.0,0.00035,3]
[311558486,1705239054460,-200.0,0.00035,5]
[311558487,1705239054469,-200.0,0.00035,5]
[311558488,1705239054479,-76507.48,0.00035,3]
[311558489,1705239054488,-2000.0,0.00035,2]
[311558490,1705239054498,-16426.79456655,0.00035,2]
[311558491,1705239054507,-1000.0,0.00035,5]
[311558492,1705239054517,-400.04695367,0.00035,2]
[311558493,1705239054527,-311.2721393,0.00035,4]
[311558494,1705239054537,-18105.35384184,0.00035,5]
[311558495,1705239054546,-214.0,0.00035,2]
[311558496,1705239054555,-618.42,0.00035,10]
[311558497,1705239054565,-841.73243838,0.00035,30]
[311558498,1705239054574,-600.0,0.00035,36]
[311558499,1705239054583,-500.0,0.00035,5]
[311558500,1705239054593,-42881.70167077,0.00035,7]
[311558501,1705239054602,-609.40756116,0.00035,2]
[311558502,1705239054611,-150.0,0.00035,2]
[311558503,1705239054621,-150.0,0.00035,7]
[311558504,1705239054630,-152.0,0.00035,2]
[311558505,1705239054640,-4000.0,0.00035,2]
[311558506,1705239054650,-150.1,0.00035,2]
[311558507,1705239054660,-824.74,0.00035,2]
[311558508,1705239054669,-151.0,0.00035,7]
[311558509,1705239054679,-3000.0,0.00035,8]
[311558510,1705239054688,-681.789717,0.00035,7]
[311558511,1705239054697,-681.789717,0.00035,7]
[311558512,1705239054706,-692.47742557,0.00035,2]
[311558513,1705239054715,-692.47742557,0.00035,2]
[311558514,1705239054726,-873.23110883,0.00035,2]
[311558515,1705239054738,-873.23110883,0.00035,2]
[311558516,1705239054748,-601.216148,0.00035,7]
[311558517,1705239054758,-601.216148,0.00035,7]
[311558518,1705239054766,-204.80643,0.00035,7]
[311558519,1705239054776,-415.055616,0.00035,7]
[311558520,1705239054785,-415.055616,0.00035,7]
[311558521,1705239054794,-500.0,0.00035,7]
[311558522,1705239054803,-500.0,0.00035,7]
[311558523,1705239054812,-199.815239,0.00035,7]
[311558524,1705239054821,-199.815239,0.00035,7]
[311558525,1705239054831,-1259.1416096,0.00035,4]
[311558526,1705239054840,-162.472577,0.00035,10]
[311558527,1705239054850,-284.348184,0.00035,7]
[311558528,1705239054860,-161.635064,0.00035,7]
[311558529,1705239054871,-161.635064,0.00035,7]
[311558530,1705239054881,-231.957242,0.00035,7]
[311558531,1705239054890,-2000.8,0.00035,2]
[311558532,1705239054900,-187.971555,0.00035,7]
[311558533,1705239054909,-187.971555,0.00035,7]
[311558534,1705239054918,-153.40198,0.00035,7]
[311558535,1705239054928,-153.40198,0.00035,7]
[311558536,1705239054938,-151.0,0.00035,7]
[311558537,1705239054949,-9888.87739539,0.00035,2]
[311558538,1705239054958,-9888.87739539,0.00035,2]
[311558539,1705239054968,-9888.87739539,0.00035,2]
[311558540,1705239054978,-500.0,0.00035,3]
[311558541,1705239054987,-428.067621,0.00035,7]
[311558542,1705239054997,-428.067621,0.00035,7]
[311558543,1705239055006,-885.988555,0.00035,7]
[311558544,1705239055015,-885.988555,0.00035,7]
[311558545,1705239055026,-700.0,0.00035,2]
[311558546,1705239055035,-1000.0,0.00035,2]
[311558547,1705239055044,-1038.8221014,0.00035,2]
[311558548,1705239055053,-23749.35799791,0.00035,10]
[311558549,1705239055063,-100138.25354321,0.00035,2]
[311558550,1705239055072,-25363.82974611,0.00035,2]
[311558551,1705239055082,-4056.01240841,0.00035,20]
[311558552,1705239055091,-2284.231284,0.00035,2]
[311558553,1705239055101,-2000.0,0.00035,4]
[311558554,1705239055110,-164.0,0.00035,2]
[311558555,1705239055120,-2078.0,0.00035,2]
[311558556,1705239055271,-3000.0,0.0003501,8]
[311558557,1705239055281,-5806.341676,0.0003502,8]
[311558558,1705239055290,-16852.383509,0.00035068,2]
[311558559,1705239055300,-129037.664925,0.00035068,2]
[311558560,1705239055309,-151.0,0.000351,2]
[311558561,1705239055318,-432.0,0.000351,2]
[311558562,1705239055327,-500.0,0.00035174,7]
[311558563,1705239055336,-5552.83,0.000353,3]
[311558564,1705239055346,-5552.83,0.000353,3]
[311558565,1705239055355,-5552.83,0.000353,3]
[311558566,1705239055364,-5552.83,0.000353,3]
[311558567,1705239055374,-5552.83,0.000353,3]
[311558568,1705239055383,-5552.83,0.000353,3]
[311558569,1705239055392,-5552.83,0.000353,3]
[311558570,1705239055401,-5552.83,0.000353,3]
[311558571,1705239055410,-5552.83,0.000353,3]
[311558572,1705239055420,-5552.83,0.000353,3]
[311558573,1705239055429,-5552.83,0.000353,3]
[311558574,1705239055438,-5552.83,0.000353,3]
[311558575,1705239055447,-5552.83,0.000353,3]
[311558576,1705239055458,-5552.83,0.000353,3]
[311558577,1705239055467,-5552.83,0.000353,3]
[311558578,1705239055476,-5552.83,0.000353,3]
[311558579,1705239055485,-5552.83,0.000353,3]
[311558580,1705239055494,-5552.83,0.000353,3]
[311558581,1705239055503,-5552.83,0.000353,3]
[311558582,1705239055512,-5552.83,0.000353,3]
[311558583,1705239055521,-151.0,0.00035342,7]
[311558584,1705239055530,-681.789717,0.00035342,7]
[311558585,1705239055539,-681.789717,0.00035342,7]
[311558586,1705239055548,-601.216148,0.00035342,7]
[311558587,1705239055558,-601.216148,0.00035342,7]
[311558588,1705239055569,-415.055616,0.00035342,7]
[311558589,1705239055579,-415.055616,0.00035342,7]
[311558590,1705239055588,-500.0,0.00035342,7]
[311558591,1705239055597,-500.0,0.00035342,7]
[311558592,1705239055606,-199.815239,0.00035342,7]
[311558593,1705239055615,-199.815239,0.00035342,7]
[311558594,1705239055624,-161.635064,0.00035342,7]
[311558595,1705239055634,-161.635064,0.00035342,7]
[311558596,1705239055643,-187.971555,0.00035342,7]
[311558597,1705239055652,-187.971555,0.00035342,7]
[311558598,1705239055663,-153.40198,0.00035342,7]
[311558599,1705239055674,-153.40198,0.00035342,7]
[311558600,1705239055683,-151.0,0.00035342,7]
[311558601,1705239055692,-428.067621,0.00035342,7]
[311558602,1705239055701,-428.067621,0.00035342,7]
[311558603,1705239055710,-885.988555,0.00035342,7]
[311558604,1705239055720,-885.988555,0.00035342,7]
[311558605,1705239055733,-23593.336913,0.00035342,2]
[311558606,1705239055742,-180652.730896,0.00035342,2]
[311558607,1705239055751,-433.0,0.000354,24]
[311558608,1705239055761,-157.85,0.000354,3]
[311558609,1705239055771,-157.85,0.000354,3]
[311558610,1705239055780,-157.85,0.000354,3]
[311558611,1705239055790,-157.85,0.000354,3]
[311558612,1705239055800,-150.0,0.00035472,2]
[311558613,1705239055811,-14409.63,0.000355,10]
[311558614,1705239055822,-150.5703186,0.000355,30]
[311558615,1705239055831,-10533.8276703,0.00035532,2]
[311558616,1705239055841,-58000.0,0.00035598,3]
[311558617,1705239055852,-5381.0,0.000356,2]
[311558618,1705239055861,-151.0,0.000356,2]
[311558619,1705239055870,-432.0,0.000356,2]
[311558620,1705239055879,-58000.0,0.00035607,3]
[311558621,1705239055888,-58000.0,0.00035616,3]
[311558622,1705239055898,-150.0,0.00035616,2]
[311558623,1705239055907,-300.0,0.00035616,7]
[311558624,1705239055916,-450.0,0.00035616,12]
[311558625,1705239055926,-600.0,0.00035616,17]
[311558626,1705239055935,-750.0,0.00035616,22]
[311558627,1705239055944,-900.0,0.00035616,27]
[311558628,1705239055953,-1050.0,0.00035616,32]
[311558629,1705239055963,-366.19120909,0.00035616,37]
[311558630,1705239055972,-175.0,0.00035616,7]
[311558631,1705239055982,-208.0,0.00035616,7]
[311558632,1705239055991,-284.0,0.00035616,7]
[311558633,1705239056000,-153.84,0.00035616,2]
[311558634,1705239056010,-1631.77981759,0.00035616,2]
[311558635,1705239056019,-155.0,0.00035617,2]
[311558636,1705239056029,-300.0,0.00035619,2]
[311558637,1705239056038,-300.0,0.00035619,2]
[311558638,1705239056047,-1214.55248346,0.0003562,7]
[311558639,1705239056056,-1214.55248346,0.0003562,7]
[311558640,1705239056066,-1214.55248346,0.0003562,7]
[311558641,1705239056076,-1214.55248346,0.0003562,7]
[311558642,1705239056085,-1214.55248346,0.0003562,7]
[311558643,1705239056094,-1214.55248346,0.0003562,7]
[311558644,1705239056103,-1214.55248346,0.0003562,7]
[311558645,1705239056112,-1214.55248346,0.0003562,7]
[311558646,1705239056122,-1214.55248346,0.0003562,7]
[311558647,1705239056131,-1214.55248346,0.0003562,7]
[311558648,1705239056140,-1214.55248346,0.0003562,7]
[311558649,1705239056149,-1214.55248346,0.0003562,7]
[311558650,1705239056159,-1214.55248346,0.0003562,7]
[311558651,1705239056168,-1214.55248346,0.0003562,7]
[311558652,1705239056177,-1214.55248346,0.0003562,7]
[311558653,1705239056187,-1214.55248346,0.0003562,7]
[311558654,1705239056198,-1214.55248346,0.0003562,7]
[311558655,1705239056209,-1214.55248346,0.0003562,7]
[311558656,1705239056220,-1214.55248346,0.0003562,7]
[311558657,1705239056231,-1214.55,0.0003562,7]
[311558658,1705239056244,-4858.20993382,0.0003562,7]
[311558659,1705239056254,-4858.20993382,0.0003562,7]
[311558660,1705239056264,-4858.20993382,0.0003562,7]
[311558661,1705239056273,-4858.20993382,0.0003562,7]
[311558662,1705239056283,-4858.20993382,0.0003562,7]
[311558663,1705239056292,-4858.20993382,0.0003562,7]
[311558664,1705239056301,-4858.20993382,0.0003562,7]
[311558665,1705239056310,-625.48856537,0.0003562,7]
[311558666,1705239056319,-625.48856537,0.0003562,7]
[311558667,1705239056328,-625.48856537,0.0003562,7]
[311558668,1705239056338,-625.48856537,0.0003562,7]
[311558669,1705239056349,-625.48856537,0.0003562,7]
[311558670,1705239056359,-625.48856537,0.0003562,7]
[311558671,1705239056368,-625.48856537,0.0003562,7]
[311558672,1705239056377,-625.48856537,0.0003562,7]
[311558673,1705239056386,-625.48856537,0.0003562,7]
[311558674,1705239056395,-625.48856537,0.0003562,7]
[311558675,1705239056404,-625.48856537,0.0003562,7]
[311558676,1705239056414,-625.48856537,0.0003562,7]
[311558677,1705239056448,-625.48856537,0.0003562,7]
[311558678,1705239056458,-625.48856537,0.0003562,7]
[311558679,1705239056469,-625.48856537,0.0003562,7]
[311558680,1705239056479,-625.48856537,0.0003562,7]
[311558681,1705239056488,-625.48856537,0.0003562,7]
[311558682,1705239056498,-625.48856537,0.0003562,7]
[311558683,1705239056507,-625.48856537,0.0003562,7]
[311558684,1705239056516,-625.48,0.0003562,7]
[311558685,1705239056525,-2501.95426146,0.0003562,7]
[311558686,1705239056535,-2501.95426146,0.0003562,7]
[311558687,1705239056545,-2501.95426146,0.0003562,7]
[311558688,1705239056555,-2501.95426146,0.0003562,7]
[311558689,1705239056566,-2501.95426146,0.0003562,7]
[311558690,1705239056577,-2501.95426146,0.0003562,7]
[311558691,1705239056586,-2501.95426146,0.0003562,7]
[311558692,1705239056596,-797.23720807,0.0003562,7]
[311558693,1705239056606,-797.23720807,0.0003562,7]
[311558694,1705239056616,-797.23720807,0.0003562,7]
[311558695,1705239056627,-797.23720807,0.0003562,7]
[311558696,1705239056637,-797.23720807,0.0003562,7]
[311558697,1705239056647,-797.23720807,0.0003562,7]
[311558698,1705239056657,-797.23720807,0.0003562,7]
[311558699,1705239056669,-797.23720807,0.0003562,7]
[311558700,1705239056680,-797.23720807,0.0003562,7]
[311558701,1705239056690,-797.23720807,0.0003562,7]
[311558702,1705239056700,-797.23720807,0.0003562,7]
[311558703,1705239056711,-797.23720807,0.0003562,7]
[311558704,1705239056721,-797.23720807,0.0003562,7]
[311558705,1705239056731,-797.23720807,0.0003562,7]
[311558706,1705239056741,-797.23720807,0.0003562,7]
[311558707,1705239056754,-797.23720807,0.0003562,7]
[311558708,1705239056765,-797.23720807,0.0003562,7]
[311558709,1705239056776,-797.23720807,0.0003562,7]
[311558710,1705239056786,-797.23720807,0.0003562,7]
[311558711,1705239056795,-797.23,0.0003562,7]
[311558712,1705239056805,-3188.94883228,0.0003562,7]
[311558713,1705239056816,-3188.94883228,0.0003562,7]
[311558714,1705239056825,-3188.94883228,0.0003562,7]
[311558715,1705239056834,-3188.94883228,0.0003562,7]
[311558716,1705239056843,-3188.94883228,0.0003562,7]
[311558717,1705239056853,-3188.94883228,0.0003562,7]
[311558718,1705239056863,-3188.94883228,0.0003562,7]
[311558719,1705239056873,-659.95586081,0.0003562,7]
[311558720,1705239056883,-659.95586081,0.0003562,7]
[311558721,1705239056892,-659.95586081,0.0003562,7]
[311558722,1705239056902,-659.95586081,0.0003562,7]
[311558723,1705239056912,-659.95586081,0.0003562,7]
[311558724,1705239056922,-659.95586081,0.0003562,7]
[311558725,1705239056931,-659.95586081,0.0003562,7]
[311558726,1705239056941,-659.95586081,0.0003562,7]
[311558727,1705239056950,-659.95586081,0.0003562,7]
[311558728,1705239056959,-659.95586081,0.0003562,7]
[311558729,1705239056969,-659.95586081,0.0003562,7]
[311558730,1705239056979,-659.95586081,0.0003562,7]
[311558731,1705239056988,-659.95586081,0.0003562,7]
[311558732,1705239056997,-659.95586081,0.0003562,7]
[311558733,1705239057007,-659.95586081,0.0003562,7]
[311558734,1705239057016,-659.95586081,0.0003562,7]
[311558735,1705239057025,-659.95586081,0.0003562,7]
[311558736,1705239057035,-659.95586081,0.0003562,7]
[311558737,1705239057044,-659.95586081,0.0003562,7]
[311558738,1705239057054,-659.95,0.0003562,7]
[311558739,1705239057063,-2639.82344324,0.0003562,7]
[311558740,1705239057073,-2639.82344324,0.0003562,7]
[311558741,1705239057083,-2639.82344324,0.0003562,7]
[311558742,1705239057093,-2639.82344324,0.0003562,7]
[311558743,1705239057103,-2639.82344324,0.0003562,7]
[311558744,1705239057114,-2639.82344324,0.0003562,7]
[311558745,1705239057124,-2639.82344324,0.0003562,7]
[311558746,1705239057136,-509.41148188,0.0003562,7]
[311558747,1705239057147,-509.41148188,0.0003562,7]
[311558748,1705239057158,-509.41148188,0.0003562,7]
[311558749,1705239057169,-509.41148188,0.0003562,7]
[311558750,1705239057179,-509.41148188,0.0003562,7]
[311558751,1705239057191,-509.41148188,0.0003562,7]
[311558752,1705239057201,-509.41148188,0.0003562,7]
[311558753,1705239057210,-509.41148188,0.0003562,7]
[311558754,1705239057221,-509.41148188,0.0003562,7]
[311558755,1705239057231,-509.41148188,0.0003562,7]
[311558756,1705239057240,-509.41148188,0.0003562,7]
[311558757,1705239057251,-509.41148188,0.0003562,7]
[311558758,1705239057260,-509.41148188,0.0003562,7]
[311558759,1705239057271,-509.41148188,0.0003562,7]
[311558760,1705239057281,-509.41148188,0.0003562,7]
[311558761,1705239057291,-509.41148188,0.0003562,7]
[311558762,1705239057301,-509.41148188,0.0003562,7]
[311558763,1705239057311,-509.41148188,0.0003562,7]
[311558764,1705239057322,-509.41148188,0.0003562,7]
[311558765,1705239057332,-509.41,0.0003562,7]
[311558766,1705239057342,-2037.64592753,0.0003562,7]
[311558767,1705239057353,-2037.64592753,0.0003562,7]
[311558768,1705239057364,-2037.64592753,0.0003562,7]
[311558769,1705239057376,-2037.64592753,0.0003562,7]
[311558770,1705239057388,-2037.64592753,0.0003562,7]
[311558771,1705239057398,-2037.64592753,0.0003562,7]
[311558772,1705239057408,-2037.64592753,0.0003562,7]
[311558773,1705239057418,-6843.16222768,0.00035637,2]
[311558774,1705239057428,-22296.47,0.000357,7]
[311558775,1705239057438,-6571.29,0.000357,7]
[311558776,1705239057448,-12061.28,0.000357,7]
[311558777,1705239057458,-1547.43426794,0.00035713,8]
[311558778,1705239057468,-500.0,0.00035722,10]
[311558779,1705239057479,-500.0,0.00035722,10]
[311558780,1705239057489,-303.56,0.00035725,2]
[311558781,1705239057499,-244.8,0.00035739,2]
[311558782,1705239057510,-152.56,0.00035789,2]
[311558783,1705239057521,-10000.0,0.00035798,2]
[311558784,1705239057532,-424.60603916,0.00035879,2]
[311558785,1705239057543,-1854.54403208,0.00035888,30]
[311558786,1705239057553,-22296.47,0.000359,7]
[311558787,1705239057563,-6571.29,0.000359,7]
[311558788,1705239057577,-12061.28,0.000359,7]
[311558789,1705239057587,-433.0,0.000359,25]
[311558790,1705239057599,-2000.8,0.00035935,2]
[311558791,1705239057609,-167.0,0.00035937,7]
[311558792,1705239057619,-150.0,0.00035937,7]
[311558793,1705239057630,-150.0,0.00035937,7]
[311558794,1705239057639,-151.0,0.00035953,7]
[311558795,1705239057650,-681.789717,0.00035953,7]
[311558796,1705239057661,-681.789717,0.00035953,7]
[311558797,1705239057671,-601.216148,0.00035953,7]
[311558798,1705239057681,-601.216148,0.00035953,7]
[311558799,1705239057692,-415.055616,0.00035953,7]
[311558800,1705239057702,-415.055616,0.00035953,7]
[311558801,1705239057714,-500.0,0.00035953,7]
[311558802,1705239057727,-500.0,0.00035953,7]
[311558803,1705239057739,-199.815239,0.00035953,7]
[311558804,1705239057750,-199.815239,0.00035953,7]
[311558805,1705239057761,-161.635064,0.00035953,7]
[311558806,1705239057771,-161.635064,0.00035953,7]
[311558807,1705239057780,-187.971555,0.00035953,7]
[311558808,1705239057790,-187.971555,0.00035953,7]
[311558809,1705239057801,-153.40198,0.00035953,7]
[311558810,1705239057812,-153.40198,0.00035953,7]
[311558811,1705239057822,-151.0,0.00035953,7]
[311558812,1705239057831,-428.067621,0.00035953,7]
[311558813,1705239057840,-428.067621,0.00035953,7]
[311558814,1705239057850,-885.988555,0.00035953,7]
[311558815,1705239057859,-885.988555,0.00035953,7]
[311558816,1705239057868,-50000.0,0.00035953,15]
[311558817,1705239057878,-50000.0,0.00035953,15]
[311558818,1705239057887,-8813.12991982,0.00035953,9]
[311558819,1705239057897,-18840.97158851,0.00035953,9]
[311558820,1705239057906,-10360.61836065,0.00035953,9]
[311558821,1705239057916,-13325.76231235,0.00035953,9]
[311558822,1705239057925,-50000.0,0.00035953,15]
[311558823,1705239057935,-22995.5637867,0.00035953,10]
[311558824,1705239057944,-7196.42666028,0.00035953,9]
[311558825,1705239057955,-50000.0,0.00035953,15]
[311558826,1705239057965,-4858.20993382,0.00035992,7]
[311558827,1705239057975,-2501.95426146,0.00035992,7]
[311558828,1705239057986,-3188.94883228,0.00035992,7]
[311558829,1705239057996,-2639.82344324,0.00035992,7]
[311558830,1705239058006,-2037.64592753,0.00035992,7]
[311558831,1705239058016,-300.0,0.00035999,2]
[311558832,1705239058026,-300.0,0.00035999,2]
[311558833,1705239058038,-100000.0,0.00036,6]
[311558834,1705239058048,-3000.0,0.00036,2]
[311558835,1705239058058,-85000.0,0.00036,4]
[311558836,1705239058068,-172211.5380233,0.00036,3]
[311558837,1705239058079,-2000.0,0.00036,4]
[311558838,1705239058090,-4000.0,0.00036,2]
[311558839,1705239058101,-200266.23504314,0.00036,2]
[311558840,1705239058112,-220.76620052,0.00036,4]
[311558841,1705239058123,-305.55179929,0.00036,3]
[311558842,1705239058134,-526.065607,0.00036,7]
[311558843,1705239058145,-72299.64589162,0.00036,2]
[311558844,1705239058156,-1600.0,0.00036,4]
[311558845,1705239058166,-35000.0,0.00036,5]
[311558846,1705239058177,-2000.0,0.00036,2]
[311558847,1705239058188,-1008.492186,0.00036,15]
[311558848,1705239058197,-3548.29211061,0.00036,2]
[311558849,1705239058207,-5000.0,0.00036,2]
[311558850,1705239058217,-1000.0,0.00036,3]
[311558851,1705239058227,-600.0,0.00036,37]
[311558852,1705239058238,-116811.16607797,0.00036,4]
[311558853,1705239058249,-49219.83954684,0.00036,2]
[311558854,1705239058260,-1086.05650437,0.00036,2]
[311558855,1705239058271,-161.635064,0.00036,7]
[311558856,1705239058281,-161.635064,0.00036,7]
[311558857,1705239058292,-2000.8,0.00036,2]
[311558858,1705239058303,-187.971555,0.00036,7]
[311558859,1705239058314,-187.971555,0.00036,7]
[311558860,1705239058324,-153.40198,0.00036,7]
[311558861,1705239058335,-153.40198,0.00036,7]
[311558862,1705239058346,-291.7065,0.00036,7]
[311558863,1705239058357,-9888.87739539,0.00036,2]
[311558864,1705239058366,-428.067621,0.00036,7]
[311558865,1705239058377,-428.067621,0.00036,7]
[311558866,1705239058387,-885.988555,0.00036,7]
[311558867,1705239058396,-885.988555,0.00036,7]
[311558868,1705239058405,-1038.8221014,0.00036,4]
[311558869,1705239058415,-33152.82074239,0.00036089,2]
[311558870,1705239058424,-33152.82074234,0.00036089,2]
[311558871,1705239058433,-33152.82074234,0.00036089,2]
[311558872,1705239058443,-33152.82074234,0.00036089,2]
[311558873,1705239058452,-33152.82074234,0.00036089,2]
[311558874,1705239058461,-33152.82074234,0.00036089,2]
[311558875,1705239058470,-33152.82074234,0.00036089,2]
[311558876,1705239058479,-33152.82074234,0.00036089,2]
[311558877,1705239058488,-33152.82074234,0.00036089,2]
[311558878,1705239058498,-33152.82074234,0.00036089,2]
[311558879,1705239058507,-151.0,0.00036089,7]
[311558880,1705239058516,-681.789717,0.00036089,7]
[311558881,1705239058525,-681.789717,0.00036089,7]
[311558882,1705239058535,-601.216148,0.00036089,7]
[311558883,1705239058544,-601.216148,0.00036089,7]
[311558884,1705239058553,-415.055616,0.00036089,7]
[311558885,1705239058562,-415.055616,0.00036089,7]
[311558886,1705239058571,-500.0,0.00036089,7]
[311558887,1705239058581,-500.0,0.00036089,7]
[311558888,1705239058590,-199.815239,0.00036089,7]
[311558889,1705239058599,-199.815239,0.00036089,7]
[311558890,1705239058608,-22296.47,0.000361,7]
[311558891,1705239058617,-6571.29,0.000361,7]
[311558892,1705239058627,-12061.28,0.000361,7]
[311558893,1705239058637,-90655.0,0.000362,3]
[311558894,1705239058646,-432.0,0.000362,2]
[311558895,1705239058656,-167.0,0.00036257,7]
[311558896,1705239058665,-150.0,0.00036257,7]
[311558897,1705239058676,-150.0,0.00036257,7]
[311558898,1705239058685,-500.0,0.0003627,7]
[311558899,1705239058694,-22296.47,0.000363,7]
[311558900,1705239058703,-6571.29,0.000363,7]
[311558901,1705239058713,-12061.28,0.000363,7]